[Event "*** Titled Tuesday Blitz"]
[Site "Chess.com"]
[Date "2020.04.21"]
[Round "6"]
[White "Shuvatkin_Vladimir"]
[Black "Vesper2018"]
[Result "0-1"]
[WhiteElo "2290"]
[BlackElo "2000"]
[TimeControl "180+1"]
[EndTime "11:10:05 PDT"]
[Termination "Vesper2018 won on time"]

1. d4 {[%clk 0:02:56.6]} 1... Nf6 {[%clk 0:03:00]} 2. Nf3 {[%clk 0:02:55.8]}
2... g6 {[%clk 0:03:00.3]} 3. g3 {[%clk 0:02:55.8]} 3... Bg7 {[%clk 0:03:00.7]}
4. Bg2 {[%clk 0:02:56.2]} 4... O-O {[%clk 0:03:00.9]} 5. O-O {[%clk 0:02:55.7]}
5... d6 {[%clk 0:03:01.4]} 6. c4 {[%clk 0:02:54.9]} 6... Nc6 {[%clk 0:03:01.7]}
7. Nc3 {[%clk 0:02:54.9]} 7... a6 {[%clk 0:03:02.2]} 8. b3 {[%clk 0:02:54.8]}
8... Rb8 {[%clk 0:03:01.7]} 9. Bb2 {[%clk 0:02:54.2]} 9... b5 {[%clk 0:03:02]}
10. cxb5 {[%clk 0:02:54]} 10... axb5 {[%clk 0:03:01.9]} 11. Rc1 {[%clk
0:02:54.2]} 11... b4 {[%clk 0:03:02.2]} 12. Na4 {[%clk 0:02:53.8]} 12... Na7
{[%clk 0:03:00.7]} 13. Re1 {[%clk 0:02:52.9]} 13... Bb7 {[%clk 0:02:51.2]} 14.
Qd2 {[%clk 0:02:49.6]} 14... e6 {[%clk 0:02:46.1]} 15. Qd3 {[%clk 0:02:30.2]}
15... Be4 {[%clk 0:02:30.4]} 16. Qc4 {[%clk 0:02:22.8]} 16... Rb7 {[%clk
0:02:13.5]} 17. Nd2 {[%clk 0:02:15.5]} 17... Bxg2 {[%clk 0:02:12.7]} 18. Kxg2
{[%clk 0:02:15.3]} 18... Nd7 {[%clk 0:02:03.2]} 19. e4 {[%clk 0:02:06.1]} 19...
Nb5 {[%clk 0:01:51]} 20. Nf3 {[%clk 0:02:02.1]} 20... Qb8 {[%clk 0:01:33.7]} 21.
Red1 {[%clk 0:01:42.1]} 21... Rc8 {[%clk 0:01:29.4]} 22. Qc6 {[%clk 0:01:34]}
22... Nf6 {[%clk 0:01:23.9]} 23. e5 {[%clk 0:01:22.5]} 23... Nd5 {[%clk
0:01:21]} 24. exd6 {[%clk 0:01:16]} 24... Nxd6 {[%clk 0:01:20.3]} 25. Ne5 {[%clk
0:01:04.2]} 25... Qa8 {[%clk 0:01:09.7]} 26. Nc5 {[%clk 0:00:47.1]} 26... Ra7
{[%clk 0:01:02.2]} 27. Qxa8 {[%clk 0:00:34.2]} 27... Rcxa8 {[%clk 0:01:01.5]}
28. Na4 {[%clk 0:00:33.1]} 28... Rxa4 {[%clk 0:00:55.6]} 29. bxa4 {[%clk
0:00:32]} 29... Rxa4 {[%clk 0:00:55.7]} 30. Nc4 {[%clk 0:00:25.6]} 30... Nxc4
{[%clk 0:00:50.3]} 31. Rxc4 {[%clk 0:00:25.3]} 31... Rxa2 {[%clk 0:00:50]} 32.
Rb1 {[%clk 0:00:21.2]} 32... f5 {[%clk 0:00:33.4]} 33. Rc6 {[%clk 0:00:18.1]}
33... Kf7 {[%clk 0:00:33]} 34. Kf3 {[%clk 0:00:12.9]} 34... Bf8 {[%clk
0:00:27.4]} 35. Bc1 {[%clk 0:00:10.3]} 35... Bd6 {[%clk 0:00:23.8]} 36. Bf4
{[%clk 0:00:09.4]} 36... Bxf4 {[%clk 0:00:17.9]} 37. gxf4 {[%clk 0:00:09.7]}
37... Ra3+ {[%clk 0:00:18.4]} 38. Kg2 {[%clk 0:00:08.7]} 38... Nxf4+ {[%clk
0:00:18.7]} 39. Kf1 {[%clk 0:00:08.5]} 39... Nd5 {[%clk 0:00:19]} 40. Re1 {[%clk
0:00:07.5]} 40... b3 {[%clk 0:00:15.8]} 41. Rb1 {[%clk 0:00:07]} 41... Ke7
{[%clk 0:00:15.3]} 42. Rc5 {[%clk 0:00:06.2]} 42... Kd7 {[%clk 0:00:13.7]} 43.
Rb5 {[%clk 0:00:06.5]} 43... Nc3 {[%clk 0:00:14]} 44. R1xb3 {[%clk 0:00:06.8]}
44... Nxb5 {[%clk 0:00:14.2]} 45. Rxb5 {[%clk 0:00:07.2]} 45... Rd3 {[%clk
0:00:14.5]} 46. Rb4 {[%clk 0:00:06.7]} 46... Kd6 {[%clk 0:00:14.2]} 47. Ke2
{[%clk 0:00:07.2]} 47... Rh3 {[%clk 0:00:14.5]} 48. Ra4 {[%clk 0:00:07]} 48...
Rxh2 {[%clk 0:00:14.8]} 49. Ra6+ {[%clk 0:00:07.1]} 49... Kd7 {[%clk 0:00:14.6]}
50. Ra4 {[%clk 0:00:04.5]} 50... g5 {[%clk 0:00:13.9]} 51. Kf3 {[%clk
0:00:04.2]} 51... h5 {[%clk 0:00:12.2]} 52. Kg3 {[%clk 0:00:04.2]} 52... Rh1
{[%clk 0:00:11.6]} 53. Ra8 {[%clk 0:00:04.2]} 53... Rd1 {[%clk 0:00:09.3]} 54.
Rg8 {[%clk 0:00:03.4]} 54... g4 {[%clk 0:00:09.3]} 55. Rh8 {[%clk 0:00:03.1]}
55... Rxd4 {[%clk 0:00:09.1]} 56. Rxh5 {[%clk 0:00:03.2]} 56... c5 {[%clk
0:00:09.5]} 57. Kg2 {[%clk 0:00:02.8]} 57... c4 {[%clk 0:00:09.6]} 58. Rh7+
{[%clk 0:00:03.1]} 58... Kd6 {[%clk 0:00:09.9]} 59. Rh8 {[%clk 0:00:03.3]} 59...
Rd5 {[%clk 0:00:10.3]} 60. Kf1 {[%clk 0:00:03.3]} 60... c3 {[%clk 0:00:10.2]}
61. Ke2 {[%clk 0:00:03]} 61... c2 {[%clk 0:00:09.2]} 62. Rc8 {[%clk 0:00:03]}
62... Rc5 {[%clk 0:00:08.6]} 0-1

[Event "*** Titled Tuesday Blitz"]
[Site "Chess.com"]
[Date "2020.04.21"]
[Round "6"]
[White "NZT72"]
[Black "Ladislav1969"]
[Result "1-0"]
[WhiteElo "2442"]
[BlackElo "2259"]
[TimeControl "180+1"]
[EndTime "11:10:06 PDT"]
[Termination "NZT72 won by resignation"]

1. c4 {[%clk 0:03:00.9]} 1... Nf6 {[%clk 0:02:59]} 2. g3 {[%clk 0:03:00.9]} 2...
g6 {[%clk 0:02:58.7]} 3. Bg2 {[%clk 0:03:00.9]} 3... d5 {[%clk 0:02:58.6]} 4.
cxd5 {[%clk 0:02:59]} 4... Nxd5 {[%clk 0:02:58.6]} 5. Nc3 {[%clk 0:02:58.8]}
5... Nxc3 {[%clk 0:02:58.5]} 6. bxc3 {[%clk 0:02:58.6]} 6... c5 {[%clk
0:02:58.6]} 7. h4 {[%clk 0:02:56.8]} 7... Bg7 {[%clk 0:02:55.4]} 8. h5 {[%clk
0:02:56.7]} 8... O-O {[%clk 0:02:53.1]} 9. Nf3 {[%clk 0:02:47.7]} 9... Nc6
{[%clk 0:02:51.8]} 10. Qa4 {[%clk 0:02:43.1]} 10... e5 {[%clk 0:02:38.3]} 11.
Ba3 {[%clk 0:02:40.3]} 11... Qa5 {[%clk 0:02:11.7]} 12. Qxa5 {[%clk 0:02:37.2]}
12... Nxa5 {[%clk 0:02:10.8]} 13. Bxc5 {[%clk 0:02:36.3]} 13... Rd8 {[%clk
0:02:06.5]} 14. hxg6 {[%clk 0:02:15.7]} 14... hxg6 {[%clk 0:02:02.6]} 15. Ng5
{[%clk 0:02:10.3]} 15... Nc4 {[%clk 0:01:42.5]} 16. d3 {[%clk 0:02:05.5]} 16...
e4 {[%clk 0:01:23]} 17. Nxe4 {[%clk 0:02:04.5]} 17... f5 {[%clk 0:01:20.8]} 18.
dxc4 {[%clk 0:01:56.5]} 18... fxe4 {[%clk 0:01:20.7]} 19. Rc1 {[%clk 0:01:54.3]}
19... Bf5 {[%clk 0:01:12.9]} 20. g4 {[%clk 0:01:23.4]} 20... Bxg4 {[%clk
0:01:10.2]} 21. Bxe4 {[%clk 0:01:23]} 21... Be6 {[%clk 0:01:08.5]} 22. Bxb7
{[%clk 0:00:48.5]} 22... Rab8 {[%clk 0:01:06.4]} 23. Bd5 {[%clk 0:00:47.7]}
23... Bxd5 {[%clk 0:01:04.9]} 24. cxd5 {[%clk 0:00:47.7]} 24... Rxd5 {[%clk
0:01:05]} 25. Bxa7 {[%clk 0:00:43.4]} 25... Bxc3+ {[%clk 0:00:56.4]} 26. Kf1
{[%clk 0:00:41]} 26... Ra8 {[%clk 0:00:31.4]} 27. Rxc3 {[%clk 0:00:38.4]} 27...
Rxa7 {[%clk 0:00:30.5]} 28. a3 {[%clk 0:00:35.2]} 28... Rd2 {[%clk 0:00:25.6]}
29. Rhh3 {[%clk 0:00:30.1]} 29... Re7 {[%clk 0:00:21.6]} 30. Rhe3 {[%clk
0:00:29]} 30... Rb7 {[%clk 0:00:16.2]} 31. a4 {[%clk 0:00:26.5]} 31... Ra2
{[%clk 0:00:13.9]} 32. Ra3 {[%clk 0:00:25.2]} 32... Rb1+ {[%clk 0:00:13.5]} 33.
Kg2 {[%clk 0:00:24.6]} 33... Rba1 {[%clk 0:00:13.7]} 34. Rxa2 {[%clk 0:00:23.1]}
34... Rxa2 {[%clk 0:00:13.6]} 35. Re4 {[%clk 0:00:23.3]} 35... Kf7 {[%clk
0:00:12.6]} 36. Kf3 {[%clk 0:00:22.2]} 36... Kf6 {[%clk 0:00:12.8]} 37. Rb4
{[%clk 0:00:22.3]} 37... Kf5 {[%clk 0:00:12.4]} 38. Rb5+ {[%clk 0:00:20.7]}
38... Ke6 {[%clk 0:00:11.2]} 39. a5 {[%clk 0:00:20.6]} 39... Ra3+ {[%clk
0:00:11.4]} 40. e3 {[%clk 0:00:20.4]} 40... Ra4 {[%clk 0:00:12.3]} 41. Rb6+
{[%clk 0:00:20.5]} 41... Kf5 {[%clk 0:00:12.4]} 42. a6 {[%clk 0:00:20.6]} 42...
g5 {[%clk 0:00:12]} 43. Rb5+ {[%clk 0:00:20.1]} 43... Kf6 {[%clk 0:00:12.3]} 44.
Rb6+ {[%clk 0:00:20.1]} 44... Kf5 {[%clk 0:00:12.7]} 45. e4+ {[%clk 0:00:19.9]}
45... Ke5 {[%clk 0:00:12.5]} 46. Rb5+ {[%clk 0:00:19.6]} 46... Kf6 {[%clk
0:00:12.6]} 47. e5+ {[%clk 0:00:19.3]} 47... Kf5 {[%clk 0:00:12.5]} 48. e6+
{[%clk 0:00:17.5]} 48... Kxe6 {[%clk 0:00:12.3]} 49. Rxg5 {[%clk 0:00:17.6]}
49... Kf6 {[%clk 0:00:12.5]} 50. Rh5 {[%clk 0:00:16.9]} 50... Kg6 {[%clk
0:00:11.6]} 51. Rb5 {[%clk 0:00:15.2]} 51... Rxa6 {[%clk 0:00:11.6]} 52. Kg4
{[%clk 0:00:15.3]} 52... Kf6 {[%clk 0:00:11.9]} 53. f4 {[%clk 0:00:15.4]} 53...
Ra4 {[%clk 0:00:12.3]} 54. Rh5 {[%clk 0:00:15.1]} 54... Kg6 {[%clk 0:00:12.2]}
55. Rg5+ {[%clk 0:00:15.4]} 55... Kf6 {[%clk 0:00:12.1]} 56. Rg8 {[%clk
0:00:14.8]} 56... Kf7 {[%clk 0:00:12.1]} 57. Rb8 {[%clk 0:00:14.4]} 57... Ra1
{[%clk 0:00:12.2]} 58. Kg5 {[%clk 0:00:13.2]} 58... Ra5+ {[%clk 0:00:11.2]} 59.
f5 {[%clk 0:00:12.4]} 59... Ra1 {[%clk 0:00:11.6]} 60. Rb7+ {[%clk 0:00:12.5]}
60... Kf8 {[%clk 0:00:11.3]} 61. Kg6 {[%clk 0:00:12.5]} 61... Ra8 {[%clk
0:00:08.8]} 62. f6 {[%clk 0:00:09.8]} 62... Kg8 {[%clk 0:00:08.8]} 63. Rg7+
{[%clk 0:00:09.1]} 63... Kh8 {[%clk 0:00:08.5]} 64. Rh7+ {[%clk 0:00:09.1]}
64... Kg8 {[%clk 0:00:07.4]} 65. f7+ {[%clk 0:00:09.4]} 65... Kf8 {[%clk
0:00:08.1]} 66. Rh8+ {[%clk 0:00:09.8]} 66... Ke7 {[%clk 0:00:08.9]} 67. Rxa8
{[%clk 0:00:10.7]} 67... Ke6 {[%clk 0:00:09]} 68. f8=Q {[%clk 0:00:11.1]} 1-0

[Event "*** Titled Tuesday Blitz"]
[Site "Chess.com"]
[Date "2020.04.21"]
[Round "6"]
[White "FCChelsea14"]
[Black "JiaHaoxiang"]
[Result "1/2-1/2"]
[WhiteElo "2757"]
[BlackElo "2583"]
[TimeControl "180+1"]
[EndTime "11:10:07 PDT"]
[Termination "Game drawn by stalemate"]

1. d4 {[%clk 0:03:00.9]} 1... d5 {[%clk 0:02:56.6]} 2. Nf3 {[%clk 0:03:00.6]}
2... Nf6 {[%clk 0:02:56]} 3. c4 {[%clk 0:03:00.8]} 3... c6 {[%clk 0:02:52.6]} 4.
Qb3 {[%clk 0:03:00.4]} 4... dxc4 {[%clk 0:02:51.5]} 5. Qxc4 {[%clk 0:03:00.5]}
5... Bf5 {[%clk 0:02:50.9]} 6. g3 {[%clk 0:03:00.5]} 6... e6 {[%clk 0:02:50.2]}
7. Bg2 {[%clk 0:03:00.8]} 7... Nbd7 {[%clk 0:02:50]} 8. O-O {[%clk 0:03:01.3]}
8... Be7 {[%clk 0:02:50.3]} 9. Rd1 {[%clk 0:03:01.2]} 9... O-O {[%clk
0:02:50.4]} 10. e3 {[%clk 0:03:01.6]} 10... Ne4 {[%clk 0:02:39.6]} 11. Qe2
{[%clk 0:03:00.8]} 11... Rc8 {[%clk 0:02:12.2]} 12. Nfd2 {[%clk 0:02:54.6]}
12... Ndf6 {[%clk 0:02:07.6]} 13. Nc3 {[%clk 0:02:51.4]} 13... Nxc3 {[%clk
0:02:00.7]} 14. bxc3 {[%clk 0:02:52.3]} 14... Qa5 {[%clk 0:01:50.9]} 15. Bb2
{[%clk 0:02:45.7]} 15... Rfd8 {[%clk 0:01:41]} 16. e4 {[%clk 0:02:43.5]} 16...
Bg4 {[%clk 0:01:40.7]} 17. f3 {[%clk 0:02:43]} 17... Bh5 {[%clk 0:01:41.1]} 18.
Nc4 {[%clk 0:02:42.7]} 18... Qa6 {[%clk 0:01:40.2]} 19. Bf1 {[%clk 0:02:39.4]}
19... c5 {[%clk 0:01:30.6]} 20. g4 {[%clk 0:02:08.5]} 20... Bg6 {[%clk
0:01:26.9]} 21. a4 {[%clk 0:02:07.1]} 21... cxd4 {[%clk 0:01:25.8]} 22. cxd4
{[%clk 0:02:07.3]} 22... Nd7 {[%clk 0:01:08.9]} 23. a5 {[%clk 0:01:19]} 23...
Nb8 {[%clk 0:01:08]} 24. Rac1 {[%clk 0:01:02.2]} 24... Qb5 {[%clk 0:01:04.3]}
25. Qf2 {[%clk 0:01:00.7]} 25... Qg5 {[%clk 0:00:50.6]} 26. Ne5 {[%clk
0:00:56.7]} 26... Bd6 {[%clk 0:00:39.2]} 27. h4 {[%clk 0:00:52.8]} 27... Qf4
{[%clk 0:00:31.8]} 28. Nd3 {[%clk 0:00:43.7]} 28... Qg3+ {[%clk 0:00:18.1]} 29.
Qxg3 {[%clk 0:00:42.4]} 29... Bxg3 {[%clk 0:00:19]} 30. h5 {[%clk 0:00:41.4]}
30... Nc6 {[%clk 0:00:19.3]} 31. hxg6 {[%clk 0:00:39.6]} 31... hxg6 {[%clk
0:00:20.2]} 32. Nc5 {[%clk 0:00:37.6]} 32... Nxa5 {[%clk 0:00:18.8]} 33. Kg2
{[%clk 0:00:35.9]} 33... Bf4 {[%clk 0:00:18.4]} 34. Rc3 {[%clk 0:00:28.7]} 34...
b6 {[%clk 0:00:18.5]} 35. Na4 {[%clk 0:00:28.5]} 35... Bd6 {[%clk 0:00:16.1]}
36. Rxc8 {[%clk 0:00:27.7]} 36... Rxc8 {[%clk 0:00:17]} 37. Rc1 {[%clk
0:00:27.6]} 37... Rd8 {[%clk 0:00:17.3]} 38. Nc3 {[%clk 0:00:26]} 38... Nb3
{[%clk 0:00:17.4]} 39. Rd1 {[%clk 0:00:26.3]} 39... Bb4 {[%clk 0:00:17.4]} 40.
Nb5 {[%clk 0:00:26.3]} 40... a6 {[%clk 0:00:16.9]} 41. Nc7 {[%clk 0:00:25.8]}
41... a5 {[%clk 0:00:16.9]} 42. Bc4 {[%clk 0:00:24.4]} 42... Rc8 {[%clk
0:00:15.6]} 43. Bxb3 {[%clk 0:00:24.3]} 43... Rxc7 {[%clk 0:00:16.2]} 44. d5
{[%clk 0:00:24.1]} 44... exd5 {[%clk 0:00:16.2]} 45. exd5 {[%clk 0:00:23.3]}
45... b5 {[%clk 0:00:16.8]} 46. d6 {[%clk 0:00:23]} 46... Rd7 {[%clk 0:00:16.8]}
47. Be5 {[%clk 0:00:23.2]} 47... a4 {[%clk 0:00:17.2]} 48. Bd5 {[%clk
0:00:22.3]} 48... Rd8 {[%clk 0:00:16.9]} 49. Bc6 {[%clk 0:00:22.2]} 49... f6
{[%clk 0:00:17.5]} 50. Bg3 {[%clk 0:00:21.8]} 50... a3 {[%clk 0:00:17.5]} 51.
Bxb5 {[%clk 0:00:22.2]} 51... a2 {[%clk 0:00:18.2]} 52. Bc4+ {[%clk 0:00:22.6]}
52... Kf8 {[%clk 0:00:18.2]} 53. Bxa2 {[%clk 0:00:22.6]} 53... g5 {[%clk
0:00:18.7]} 54. Be6 {[%clk 0:00:22.3]} 54... g6 {[%clk 0:00:18.8]} 55. d7 {[%clk
0:00:21.5]} 55... Ke7 {[%clk 0:00:18.5]} 56. Bb3 {[%clk 0:00:20.7]} 56... Rxd7
{[%clk 0:00:18.6]} 57. Rxd7+ {[%clk 0:00:21.3]} 57... Kxd7 {[%clk 0:00:19.1]}
58. Bf7 {[%clk 0:00:21.9]} 58... f5 {[%clk 0:00:19.3]} 59. Bxg6 {[%clk
0:00:22.3]} 59... fxg4 {[%clk 0:00:18.6]} 60. fxg4 {[%clk 0:00:23.2]} 60... Ke7
{[%clk 0:00:18.9]} 61. Kf3 {[%clk 0:00:23.6]} 61... Bd2 {[%clk 0:00:19.2]} 62.
Bc2 {[%clk 0:00:23.9]} 62... Kf6 {[%clk 0:00:19.4]} 63. Ke4 {[%clk 0:00:24.3]}
63... Bc3 {[%clk 0:00:19.7]} 64. Bd6 {[%clk 0:00:24.3]} 64... Bb2 {[%clk
0:00:19.9]} 65. Bc5 {[%clk 0:00:24.8]} 65... Bc1 {[%clk 0:00:19.4]} 66. Bd4+
{[%clk 0:00:25.1]} 66... Kg6 {[%clk 0:00:19.9]} 67. Ke5+ {[%clk 0:00:25.4]}
67... Kh6 {[%clk 0:00:20.3]} 68. Kf5 {[%clk 0:00:25.8]} 68... Bf4 {[%clk
0:00:19.7]} 69. Bc5 {[%clk 0:00:25.9]} 69... Kg7 {[%clk 0:00:17.8]} 70. Be7
{[%clk 0:00:26.1]} 70... Kh6 {[%clk 0:00:17.7]} 71. Ke6 {[%clk 0:00:26.5]} 71...
Kg7 {[%clk 0:00:16.1]} 72. Bf6+ {[%clk 0:00:26.9]} 72... Kh6 {[%clk 0:00:16.2]}
73. Kf7 {[%clk 0:00:27.3]} 73... Be5 {[%clk 0:00:15.4]} 74. Be7 {[%clk
0:00:26.4]} 74... Bd6 {[%clk 0:00:15.5]} 75. Bf8+ {[%clk 0:00:26.6]} 75... Bxf8
{[%clk 0:00:14.8]} 76. Kxf8 {[%clk 0:00:23.4]} 1/2-1/2

[Event "*** Titled Tuesday Blitz"]
[Site "Chess.com"]
[Date "2020.04.21"]
[Round "6"]
[White "dukicz123"]
[Black "Manukyan_Artak"]
[Result "1/2-1/2"]
[WhiteElo "2577"]
[BlackElo "2364"]
[TimeControl "180+1"]
[EndTime "11:10:11 PDT"]
[Termination "Game drawn by repetition"]

1. e4 {[%clk 0:03:00.9]} 1... c6 {[%clk 0:02:59.6]} 2. d4 {[%clk 0:02:59.6]}
2... d5 {[%clk 0:03:00.5]} 3. Nd2 {[%clk 0:02:58.9]} 3... dxe4 {[%clk
0:03:00.4]} 4. Nxe4 {[%clk 0:02:59.8]} 4... Nf6 {[%clk 0:03:01.2]} 5. Nxf6+
{[%clk 0:02:58.2]} 5... exf6 {[%clk 0:03:02.1]} 6. c3 {[%clk 0:02:58.7]} 6...
Bd6 {[%clk 0:03:02.1]} 7. Bd3 {[%clk 0:02:59.3]} 7... O-O {[%clk 0:03:02]} 8.
Qc2 {[%clk 0:02:59.7]} 8... h6 {[%clk 0:03:01.5]} 9. Ne2 {[%clk 0:03:00.6]} 9...
Qc7 {[%clk 0:03:01.3]} 10. h3 {[%clk 0:02:57.6]} 10... c5 {[%clk 0:02:59.2]} 11.
dxc5 {[%clk 0:02:45.8]} 11... Qxc5 {[%clk 0:02:52.2]} 12. O-O {[%clk 0:02:46.7]}
12... Nc6 {[%clk 0:02:49.1]} 13. Be3 {[%clk 0:02:43.7]} 13... Qh5 {[%clk
0:02:45.6]} 14. Nf4 {[%clk 0:02:39.6]} 14... Bxf4 {[%clk 0:02:44.4]} 15. Bxf4
{[%clk 0:02:40.5]} 15... Ne5 {[%clk 0:02:34.5]} 16. Be2 {[%clk 0:02:35.4]} 16...
Qf5 {[%clk 0:02:30.5]} 17. Qxf5 {[%clk 0:02:32.3]} 17... Bxf5 {[%clk 0:02:31.4]}
18. Rfd1 {[%clk 0:02:31.4]} 18... Rad8 {[%clk 0:02:30.6]} 19. Be3 {[%clk
0:02:19.1]} 19... a6 {[%clk 0:02:23.3]} 20. Bb6 {[%clk 0:02:12.4]} 20... Rxd1+
{[%clk 0:02:19.6]} 21. Rxd1 {[%clk 0:02:13.3]} 21... Rc8 {[%clk 0:01:57.3]} 22.
Rd4 {[%clk 0:01:50.2]} 22... Be6 {[%clk 0:01:51.4]} 23. f4 {[%clk 0:01:41.5]}
23... Nc4 {[%clk 0:01:44.8]} 24. f5 {[%clk 0:01:24.4]} 24... Nxb6 {[%clk
0:01:43.1]} 25. fxe6 {[%clk 0:01:24.9]} 25... fxe6 {[%clk 0:01:44]} 26. Rb4
{[%clk 0:01:25.6]} 26... Rc6 {[%clk 0:00:57]} 27. Bf3 {[%clk 0:01:24.8]} 27...
Nd5 {[%clk 0:00:44.1]} 28. Rxb7 {[%clk 0:01:23.3]} 28... Kf8 {[%clk 0:00:26.9]}
29. Rd7 {[%clk 0:01:09.3]} 29... Rb6 {[%clk 0:00:22.6]} 30. Bxd5 {[%clk
0:01:05.3]} 30... exd5 {[%clk 0:00:22.9]} 31. b3 {[%clk 0:01:05.4]} 31... Rc6
{[%clk 0:00:22.1]} 32. Rxd5 {[%clk 0:00:33.5]} 32... Rxc3 {[%clk 0:00:21.8]} 33.
Ra5 {[%clk 0:00:34.3]} 33... Rc6 {[%clk 0:00:21.7]} 34. Kf2 {[%clk 0:00:29.3]}
34... g5 {[%clk 0:00:20.6]} 35. Ke3 {[%clk 0:00:26.9]} 35... Kg7 {[%clk
0:00:20.2]} 36. b4 {[%clk 0:00:24.9]} 36... Rd6 {[%clk 0:00:18.2]} 37. a4 {[%clk
0:00:22.6]} 37... Kg6 {[%clk 0:00:18]} 38. b5 {[%clk 0:00:16.4]} 38... axb5
{[%clk 0:00:17.6]} 39. axb5 {[%clk 0:00:17.3]} 39... h5 {[%clk 0:00:15.9]} 40.
Ra4 {[%clk 0:00:15.1]} 40... Rb6 {[%clk 0:00:12.1]} 41. Rb4 {[%clk 0:00:14.7]}
41... Kf5 {[%clk 0:00:12.2]} 42. Kd4 {[%clk 0:00:14.6]} 42... Ke6 {[%clk
0:00:11.5]} 43. Kc5 {[%clk 0:00:14.9]} 43... Rb8 {[%clk 0:00:11.8]} 44. b6
{[%clk 0:00:14.8]} 44... Kd7 {[%clk 0:00:12.1]} 45. Rd4+ {[%clk 0:00:12.6]}
45... Ke6 {[%clk 0:00:11.9]} 46. Kc6 {[%clk 0:00:11.6]} 46... Rc8+ {[%clk
0:00:12.2]} 47. Kb7 {[%clk 0:00:11.4]} 47... Rc2 {[%clk 0:00:12.7]} 48. Rb4
{[%clk 0:00:08.1]} 48... Rxg2 {[%clk 0:00:11.6]} 49. Kc8 {[%clk 0:00:08.1]}
49... Rc2+ {[%clk 0:00:10.8]} 50. Kb8 {[%clk 0:00:08.4]} 50... Rd2 {[%clk
0:00:09.3]} 51. b7 {[%clk 0:00:08.1]} 51... Rd7 {[%clk 0:00:08.9]} 52. Kc8
{[%clk 0:00:08]} 52... Rxb7 {[%clk 0:00:08]} 53. Kxb7 {[%clk 0:00:08.9]} 53...
f5 {[%clk 0:00:08.8]} 54. Kc6 {[%clk 0:00:08.7]} 54... g4 {[%clk 0:00:07.9]} 55.
hxg4 {[%clk 0:00:05.1]} 55... hxg4 {[%clk 0:00:08.8]} 56. Kc5 {[%clk 0:00:05.9]}
56... Ke5 {[%clk 0:00:09.2]} 57. Kc4 {[%clk 0:00:06.1]} 57... Ke4 {[%clk
0:00:09.6]} 58. Kc3+ {[%clk 0:00:06.4]} 58... Ke3 {[%clk 0:00:09.7]} 59. Kc2
{[%clk 0:00:06.6]} 59... f4 {[%clk 0:00:10.1]} 60. Kd1 {[%clk 0:00:07.5]} 60...
g3 {[%clk 0:00:08.7]} 61. Rb8 {[%clk 0:00:02.4]} 61... Kf2 {[%clk 0:00:08.3]}
62. Rb2+ {[%clk 0:00:01.5]} 62... Kg1 {[%clk 0:00:08]} 63. Ke2 {[%clk
0:00:02.4]} 63... Kg2 {[%clk 0:00:07.9]} 64. Ke1+ {[%clk 0:00:02.2]} 64... Kg1
{[%clk 0:00:07.9]} 65. Ke2 {[%clk 0:00:02.3]} 65... Kg2 {[%clk 0:00:08.2]} 66.
Ke1+ {[%clk 0:00:02.7]} 66... Kg1 {[%clk 0:00:08.5]} 67. Ke2 {[%clk 0:00:03.3]}
1/2-1/2